[Event "Titled Tuesday Blitz February 22 Early 2022"]
[White "Caputcuoglu, Zeki Berke"]
[Black "Guliev, Logman"]
[WhiteFideId "34548610"]
[BlackFideId "13400061"]
[WhiteElo "1368"]
[BlackElo "2128"]
[Result "0-1"]
[Round "06"]
[TimeControl "180+1"]
[Date "2022.02.22"]
[WhiteClock "0:00:10"]
[BlackClock "0:00:46"]

1. e4 {[%clk 0:03:00]}  e5 {[%clk 0:02:58]} 2. Nf3 {[%clk 0:03:01]}  Nc6 {[%clk 0:02:58]} 3. Bb5 {[%clk 0:03:01]}  a6 {[%clk 0:02:58]} 4. Ba4 {[%clk 0:03:01]}  Nf6 {[%clk 0:02:58]} 5. O-O {[%clk 0:03:01]}  Be7 {[%clk 0:02:58]} 6. Re1 {[%clk 0:03:01]}  b5 {[%clk 0:02:59]} 7. Bb3 {[%clk 0:03:01]}  O-O {[%clk 0:02:59]} 8. a4 {[%clk 0:03:01]}  b4 {[%clk 0:02:58]} 9. d4 {[%clk 0:02:57]}  d6 {[%clk 0:02:58]} 10. dxe5 {[%clk 0:02:55]}  Nxe5 {[%clk 0:02:58]} 11. Nxe5 {[%clk 0:02:54]}  dxe5 {[%clk 0:02:58]} 12. Qe2 {[%clk 0:02:49]}  Bc5 {[%clk 0:02:55]} 13. h3 {[%clk 0:02:38]}  h6 {[%clk 0:02:53]} 14. Nd2 {[%clk 0:02:38]}  Bb7 {[%clk 0:02:50]} 15. Bc4 {[%clk 0:02:27]}  Qd4 {[%clk 0:02:44]} 16. Bd3 {[%clk 0:02:23]}  a5 {[%clk 0:02:39]} 17. Nc4 {[%clk 0:02:18]}  Qd8 {[%clk 0:02:05]} 18. Be3 {[%clk 0:02:00]}  Qe7 {[%clk 0:02:00]} 19. Bxc5 {[%clk 0:01:44]}  Qxc5 {[%clk 0:01:59]} 20. Qe3 {[%clk 0:01:45]}  Qe7 {[%clk 0:01:56]} 21. Rad1 {[%clk 0:01:35]}  Rfd8 {[%clk 0:01:56]} 22. f3 {[%clk 0:01:33]}  Nh5 {[%clk 0:01:48]} 23. Bf1 {[%clk 0:01:27]}  Nf4 {[%clk 0:01:46]} 24. Rxd8+ {[%clk 0:01:20]}  Qxd8 {[%clk 0:01:35]} 25. Kh2 {[%clk 0:00:42]}  Qf6 {[%clk 0:01:27]} 26. Rd1 {[%clk 0:00:39]}  Bc6 {[%clk 0:01:23]} 27. Qc5 {[%clk 0:00:35]}  Bxa4 {[%clk 0:01:11]} 28. b3 {[%clk 0:00:32]}  Ne6 {[%clk 0:01:07]} 29. Qd5 {[%clk 0:00:21]}  Rd8 {[%clk 0:01:03]} 30. Qxd8+ {[%clk 0:00:14]}  Nxd8 {[%clk 0:01:02]} 31. bxa4 {[%clk 0:00:14]}  Nc6 {[%clk 0:01:00]} 32. Rd5 {[%clk 0:00:14]}  Qf4+ {[%clk 0:00:57]} 33. Kg1 {[%clk 0:00:10]}  Qc1 {[%clk 0:00:53]} 34. Nxa5 {[%clk 0:00:08]}  Nxa5 {[%clk 0:00:50]} 35. Rxa5 {[%clk 0:00:09]}  Qxc2 {[%clk 0:00:49]} 36. Rb5 {[%clk 0:00:09]}  b3 {[%clk 0:00:48]} 37. a5 {[%clk 0:00:09]}  b2 {[%clk 0:00:46]} 38. a6 {[%clk 0:00:10]}  b1=Q {[%clk 0:00:46]} 0-1


[Site "https://www.chess.com"]

[Event "Titled Tuesday Blitz February 22 Early 2022"]
[White "Carlsson, Ludvig"]
[Black "Fedoseev, Vladimir"]
[WhiteFideId "1727010"]
[BlackFideId "24130737"]
[WhiteElo "2178"]
[BlackElo "2726"]
[Result "0-1"]
[Round "06"]
[TimeControl "180+1"]
[Date "2022.02.22"]
[WhiteClock "0:00:02"]
[BlackClock "0:00:13"]

1. d4 {[%clk 0:03:00]}  Nf6 {[%clk 0:02:59]} 2. c4 {[%clk 0:03:00]}  g6 {[%clk 0:02:59]} 3. Nc3 {[%clk 0:03:00]}  Bg7 {[%clk 0:03:00]} 4. e4 {[%clk 0:03:00]}  d6 {[%clk 0:03:00]} 5. Be2 {[%clk 0:03:00]}  O-O {[%clk 0:03:00]} 6. Nf3 {[%clk 0:03:01]}  e5 {[%clk 0:02:59]} 7. dxe5 {[%clk 0:03:02]}  dxe5 {[%clk 0:02:58]} 8. Qxd8 {[%clk 0:03:03]}  Rxd8 {[%clk 0:02:58]} 9. Bg5 {[%clk 0:03:04]}  Nbd7 {[%clk 0:02:58]} 10. O-O-O {[%clk 0:03:03]}  Rf8 {[%clk 0:02:53]} 11. Nd5 {[%clk 0:02:58]}  Nxe4 {[%clk 0:02:49]} 12. Ne7+ {[%clk 0:02:56]}  Kh8 {[%clk 0:02:47]} 13. Nxc8 {[%clk 0:02:57]}  Ndc5 {[%clk 0:02:40]} 14. Ne7 {[%clk 0:02:50]}  Nxg5 {[%clk 0:02:38]} 15. Nxg5 {[%clk 0:02:49]}  Bf6 {[%clk 0:02:31]} 16. Nxh7 {[%clk 0:02:08]}  Kxh7 {[%clk 0:02:09]} 17. Nd5 {[%clk 0:02:09]}  Bg5+ {[%clk 0:02:08]} 18. Kc2 {[%clk 0:02:09]}  Ne6 {[%clk 0:02:01]} 19. Rhe1 {[%clk 0:01:55]}  c6 {[%clk 0:01:59]} 20. Nc3 {[%clk 0:01:53]}  Nd4+ {[%clk 0:01:56]} 21. Kb1 {[%clk 0:01:53]}  f5 {[%clk 0:01:56]} 22. Bf1 {[%clk 0:01:51]}  Bf6 {[%clk 0:01:51]} 23. Ne2 {[%clk 0:01:51]}  c5 {[%clk 0:01:47]} 24. Nc3 {[%clk 0:01:46]}  e4 {[%clk 0:01:42]} 25. Nd5 {[%clk 0:01:44]}  Rad8 {[%clk 0:01:42]} 26. Nc3 {[%clk 0:01:27]}  Rf7 {[%clk 0:01:36]} 27. a3 {[%clk 0:01:24]}  Rfd7 {[%clk 0:01:35]} 28. Ka2 {[%clk 0:01:24]}  Kg7 {[%clk 0:01:32]} 29. Rd2 {[%clk 0:01:24]}  Bg5 {[%clk 0:01:26]} 30. Rdd1 {[%clk 0:01:24]}  b6 {[%clk 0:01:21]} 31. Nd5 {[%clk 0:01:22]}  b5 {[%clk 0:01:10]} 32. b3 {[%clk 0:01:22]}  a5 {[%clk 0:01:05]} 33. Nc3 {[%clk 0:01:18]}  b4 {[%clk 0:00:37]} 34. Na4 {[%clk 0:01:18]}  Nc2 {[%clk 0:00:33]} 35. Rxd7+ {[%clk 0:01:00]}  Rxd7 {[%clk 0:00:34]} 36. Nxc5 {[%clk 0:00:56]}  Rd2 {[%clk 0:00:26]} 37. Re2 {[%clk 0:00:55]}  Rd1 {[%clk 0:00:26]} 38. Ne6+ {[%clk 0:00:45]}  Kf6 {[%clk 0:00:25]} 39. Nxg5 {[%clk 0:00:44]}  Nxa3 {[%clk 0:00:17]} 40. Nh7+ {[%clk 0:00:32]}  Ke5 {[%clk 0:00:16]} 41. Nf8 {[%clk 0:00:29]}  Rxf1 {[%clk 0:00:15]} 42. Nxg6+ {[%clk 0:00:29]}  Kd4 {[%clk 0:00:15]} 43. Nf4 {[%clk 0:00:24]}  Nb1 {[%clk 0:00:15]} 44. Kb2 {[%clk 0:00:19]}  Nc3 {[%clk 0:00:14]} 45. Rd2+ {[%clk 0:00:20]}  Ke5 {[%clk 0:00:15]} 46. Nd5 {[%clk 0:00:19]}  Nd1+ {[%clk 0:00:15]} 47. Kc2 {[%clk 0:00:18]}  Nxf2 {[%clk 0:00:16]} 48. Ne3 {[%clk 0:00:16]}  Re1 {[%clk 0:00:16]} 49. Nxf5 {[%clk 0:00:15]}  Nd3 {[%clk 0:00:15]} 50. Rxd3 {[%clk 0:00:08]}  exd3+ {[%clk 0:00:15]} 51. Kd2 {[%clk 0:00:09]}  Rb1 {[%clk 0:00:12]} 52. Ne3 {[%clk 0:00:08]}  Rxb3 {[%clk 0:00:13]} 53. h4 {[%clk 0:00:08]}  a4 {[%clk 0:00:13]} 54. h5 {[%clk 0:00:08]}  a3 {[%clk 0:00:13]} 55. h6 {[%clk 0:00:07]}  Kf6 {[%clk 0:00:13]} 56. Nf5 {[%clk 0:00:02]}  Kg6 {[%clk 0:00:13]} 0-1


[Site "https://www.chess.com"]

[Event "Titled Tuesday Blitz February 22 Early 2022"]
[White "Chernomordik, Pavel"]
[Black "Osiecki, Stanislaw"]
[WhiteFideId "2804530"]
[BlackFideId "1102990"]
[WhiteElo "2249"]
[BlackElo "2127"]
[Result "1-0"]
[Round "06"]
[TimeControl "180+1"]
[Date "2022.02.22"]
[WhiteClock "0:00:51"]
[BlackClock "0:00:06"]

1. e4 {[%clk 0:03:00]}  e6 {[%clk 0:02:59]} 2. Nc3 {[%clk 0:02:58]}  d5 {[%clk 0:02:58]} 3. d4 {[%clk 0:02:58]}  Bb4 {[%clk 0:02:56]} 4. Ne2 {[%clk 0:02:57]}  Be7 {[%clk 0:02:49]} 5. Nf4 {[%clk 0:02:45]}  dxe4 {[%clk 0:02:48]} 6. Nxe4 {[%clk 0:02:45]}  Nf6 {[%clk 0:02:48]} 7. Bd3 {[%clk 0:02:39]}  Nxe4 {[%clk 0:02:48]} 8. Bxe4 {[%clk 0:02:39]}  Nd7 {[%clk 0:02:44]} 9. O-O {[%clk 0:02:36]}  Nf6 {[%clk 0:02:45]} 10. Bf3 {[%clk 0:02:36]}  Bd6 {[%clk 0:02:43]} 11. Re1 {[%clk 0:02:33]}  O-O {[%clk 0:02:39]} 12. c4 {[%clk 0:02:30]}  c6 {[%clk 0:02:38]} 13. Nd3 {[%clk 0:02:26]}  Qc7 {[%clk 0:02:36]} 14. h3 {[%clk 0:02:24]}  b6 {[%clk 0:02:34]} 15. Bg5 {[%clk 0:02:21]}  Be7 {[%clk 0:02:34]} 16. Ne5 {[%clk 0:02:16]}  Bb7 {[%clk 0:02:32]} 17. Qe2 {[%clk 0:02:15]}  h6 {[%clk 0:02:31]} 18. Bh4 {[%clk 0:02:13]}  Rad8 {[%clk 0:02:28]} 19. Rad1 {[%clk 0:02:13]}  c5 {[%clk 0:02:21]} 20. dxc5 {[%clk 0:02:04]}  bxc5 {[%clk 0:02:13]} 21. Bg3 {[%clk 0:01:55]}  Qb6 {[%clk 0:02:00]} 22. Nd3 {[%clk 0:01:44]}  Bxf3 {[%clk 0:01:58]} 23. Qxf3 {[%clk 0:01:43]}  Rd4 {[%clk 0:01:52]} 24. b3 {[%clk 0:01:40]}  Rfd8 {[%clk 0:01:50]} 25. Be5 {[%clk 0:01:39]}  R4d7 {[%clk 0:01:45]} 26. Bc3 {[%clk 0:01:32]}  a5 {[%clk 0:01:42]} 27. Ne5 {[%clk 0:01:31]}  Rxd1 {[%clk 0:01:40]} 28. Rxd1 {[%clk 0:01:31]}  Rxd1+ {[%clk 0:01:25]} 29. Qxd1 {[%clk 0:01:30]}  Ne4 {[%clk 0:01:23]} 30. Ba1 {[%clk 0:01:25]}  Qd6 {[%clk 0:00:50]} 31. Qf3 {[%clk 0:01:04]}  Ng5 {[%clk 0:00:38]} 32. Qd3 {[%clk 0:01:01]}  Qxd3 {[%clk 0:00:15]} 33. Nxd3 {[%clk 0:01:00]}  Ne4 {[%clk 0:00:14]} 34. f3 {[%clk 0:00:58]}  Nd2 {[%clk 0:00:10]} 35. Bc3 {[%clk 0:00:57]}  Nb1 {[%clk 0:00:08]} 36. Bxa5 {[%clk 0:00:57]}  Bf6 {[%clk 0:00:08]} 37. Kf1 {[%clk 0:00:54]}  Bc3 {[%clk 0:00:06]} 38. Bb6 {[%clk 0:00:51]} 1-0


[Site "https://www.chess.com"]

[Event "Titled Tuesday Blitz February 22 Early 2022"]
[White "Clawitter, Craig"]
[Black "Vifleemskaia, Svetlana"]
[WhiteFideId "2023105"]
[BlackFideId "4129490"]
[WhiteElo "2226"]
[BlackElo "1901"]
[Result "0-1"]
[Round "06"]
[TimeControl "180+1"]
[Date "2022.02.22"]
[WhiteClock "0:00:04"]
[BlackClock "0:00:22"]

1. e4 {[%clk 0:03:00]}  e5 {[%clk 0:02:59]} 2. Nf3 {[%clk 0:03:00]}  Nc6 {[%clk 0:02:58]} 3. Bb5 {[%clk 0:03:01]}  a6 {[%clk 0:02:57]} 4. Ba4 {[%clk 0:03:01]}  Nf6 {[%clk 0:02:58]} 5. O-O {[%clk 0:03:02]}  Be7 {[%clk 0:02:58]} 6. d3 {[%clk 0:03:02]}  b5 {[%clk 0:02:58]} 7. Bb3 {[%clk 0:03:03]}  d6 {[%clk 0:02:59]} 8. a4 {[%clk 0:03:02]}  Bb7 {[%clk 0:02:56]} 9. Nc3 {[%clk 0:03:01]}  b4 {[%clk 0:02:55]} 10. Nd5 {[%clk 0:03:00]}  Na5 {[%clk 0:02:52]} 11. Ba2 {[%clk 0:02:55]}  c5 {[%clk 0:02:48]} 12. Bd2 {[%clk 0:02:39]}  O-O {[%clk 0:02:45]} 13. Nxe7+ {[%clk 0:02:11]}  Qxe7 {[%clk 0:02:43]} 14. h3 {[%clk 0:02:12]}  d5 {[%clk 0:02:33]} 15. exd5 {[%clk 0:02:10]}  Bxd5 {[%clk 0:02:33]} 16. Re1 {[%clk 0:02:02]}  Nc6 {[%clk 0:02:15]} 17. Nxe5 {[%clk 0:01:45]}  Nxe5 {[%clk 0:02:12]} 18. f4 {[%clk 0:01:45]}  Bxa2 {[%clk 0:02:11]} 19. Rxa2 {[%clk 0:01:44]}  Nfd7 {[%clk 0:01:59]} 20. fxe5 {[%clk 0:01:28]}  Nxe5 {[%clk 0:01:53]} 21. Qe2 {[%clk 0:00:35]}  Rfe8 {[%clk 0:01:51]} 22. Raa1 {[%clk 0:00:26]}  Qd7 {[%clk 0:01:40]} 23. Qf2 {[%clk 0:00:24]}  Qd5 {[%clk 0:01:38]} 24. Re4 {[%clk 0:00:23]}  Nd7 {[%clk 0:01:26]} 25. Rae1 {[%clk 0:00:18]}  Rxe4 {[%clk 0:01:25]} 26. Rxe4 {[%clk 0:00:19]}  Nf8 {[%clk 0:01:15]} 27. Rc4 {[%clk 0:00:12]}  Ne6 {[%clk 0:01:14]} 28. Be3 {[%clk 0:00:12]}  Rc8 {[%clk 0:01:09]} 29. a5 {[%clk 0:00:12]}  h6 {[%clk 0:01:05]} 30. b3 {[%clk 0:00:12]}  Rc7 {[%clk 0:01:03]} 31. d4 {[%clk 0:00:09]}  cxd4 {[%clk 0:00:59]} 32. Rxc7 {[%clk 0:00:09]}  Nxc7 {[%clk 0:00:54]} 33. Bxd4 {[%clk 0:00:08]}  Ne6 {[%clk 0:00:54]} 34. Bb6 {[%clk 0:00:06]}  Qd1+ {[%clk 0:00:50]} 35. Kh2 {[%clk 0:00:07]}  Qd6+ {[%clk 0:00:50]} 36. Kg1 {[%clk 0:00:06]}  Qd1+ {[%clk 0:00:47]} 37. Kh2 {[%clk 0:00:06]}  Qd6+ {[%clk 0:00:41]} 38. Kg1 {[%clk 0:00:05]}  Qe5 {[%clk 0:00:34]} 39. g3 {[%clk 0:00:05]}  h5 {[%clk 0:00:33]} 40. Kh2 {[%clk 0:00:06]}  Ng5 {[%clk 0:00:32]} 41. Be3 {[%clk 0:00:06]}  Ne4 {[%clk 0:00:31]} 42. Qf4 {[%clk 0:00:05]}  Qd5 {[%clk 0:00:28]} 43. Kg2 {[%clk 0:00:05]}  f6 {[%clk 0:00:26]} 44. Qf3 {[%clk 0:00:05]}  Kf7 {[%clk 0:00:24]} 45. Kf1 {[%clk 0:00:05]}  Nd2+ {[%clk 0:00:23]} 46. Bxd2 {[%clk 0:00:04]}  Qxf3+ {[%clk 0:00:22]} 0-1


[Site "https://www.chess.com"]

[Event "Titled Tuesday Blitz February 22 Early 2022"]
[White "Dahanayake, Isara Banidu"]
[Black "Shton, Roman"]
[WhiteFideId "9932631"]
[BlackFideId "14137461"]
[WhiteElo "1394"]
[BlackElo "2038"]
[Result "0-1"]
[Round "06"]
[TimeControl "180+1"]
[Date "2022.02.22"]
[WhiteClock "0:01:21"]
[BlackClock "0:02:34"]

1. e4 {[%clk 0:02:10]}  Nf6 {[%clk 0:03:00]} 2. e5 {[%clk 0:02:09]}  Nd5 {[%clk 0:02:57]} 3. d4 {[%clk 0:02:10]}  d6 {[%clk 0:02:56]} 4. Nf3 {[%clk 0:02:09]}  g6 {[%clk 0:02:56]} 5. exd6 {[%clk 0:02:06]}  cxd6 {[%clk 0:02:56]} 6. c4 {[%clk 0:02:06]}  Nb6 {[%clk 0:02:55]} 7. h3 {[%clk 0:02:05]}  Bg7 {[%clk 0:02:56]} 8. Nc3 {[%clk 0:02:05]}  Nc6 {[%clk 0:02:55]} 9. Be3 {[%clk 0:02:04]}  O-O {[%clk 0:02:55]} 10. Be2 {[%clk 0:02:04]}  d5 {[%clk 0:02:55]} 11. c5 {[%clk 0:02:02]}  Nc4 {[%clk 0:02:55]} 12. Bxc4 {[%clk 0:02:01]}  dxc4 {[%clk 0:02:56]} 13. d5 {[%clk 0:02:01]}  Nb4 {[%clk 0:02:51]} 14. O-O {[%clk 0:02:00]}  Bxc3 {[%clk 0:02:49]} 15. bxc3 {[%clk 0:02:00]}  Nxd5 {[%clk 0:02:49]} 16. Bh6 {[%clk 0:01:57]}  Re8 {[%clk 0:02:49]} 17. Qd4 {[%clk 0:01:57]}  f6 {[%clk 0:02:47]} 18. Qxc4 {[%clk 0:01:57]}  Be6 {[%clk 0:02:47]} 19. Qh4 {[%clk 0:01:47]}  Nxc3 {[%clk 0:02:43]} 20. Nd4 {[%clk 0:01:37]}  Qxd4 {[%clk 0:02:41]} 21. Qxd4 {[%clk 0:01:37]}  Ne2+ {[%clk 0:02:40]} 22. Kh2 {[%clk 0:01:37]}  Nxd4 {[%clk 0:02:41]} 23. Rad1 {[%clk 0:01:35]}  Nf5 {[%clk 0:02:38]} 24. Bf4 {[%clk 0:01:35]}  Bxa2 {[%clk 0:02:37]} 25. Rd7 {[%clk 0:01:33]}  e5 {[%clk 0:02:35]} 26. Bc1 {[%clk 0:01:29]}  Re7 {[%clk 0:02:35]} 27. Rd3 {[%clk 0:01:21]}  Bc4 {[%clk 0:02:34]} 0-1


[Site "https://www.chess.com"]

[Event "Titled Tuesday Blitz February 22 Early 2022"]
[White "De Souza, Cristiano Gomes"]
[Black "Zlatin, Alexander"]
[WhiteFideId "2151758"]
[BlackFideId "2810549"]
[WhiteElo "2068"]
[BlackElo "2228"]
[Result "0-1"]
[Round "06"]
[TimeControl "180+1"]
[Date "2022.02.22"]
[WhiteClock "0:01:33"]
[BlackClock "0:01:35"]

1. d4 {[%clk 0:03:00]}  d5 {[%clk 0:02:58]} 2. c4 {[%clk 0:03:01]}  e6 {[%clk 0:02:59]} 3. Nf3 {[%clk 0:03:01]}  c5 {[%clk 0:02:59]} 4. cxd5 {[%clk 0:02:59]}  exd5 {[%clk 0:03:00]} 5. Nc3 {[%clk 0:02:58]}  Nc6 {[%clk 0:03:00]} 6. g3 {[%clk 0:02:58]}  Nf6 {[%clk 0:03:01]} 7. Bg2 {[%clk 0:02:57]}  Be7 {[%clk 0:03:02]} 8. O-O {[%clk 0:02:56]}  c4 {[%clk 0:03:02]} 9. Bg5 {[%clk 0:02:54]}  O-O {[%clk 0:03:02]} 10. Ne5 {[%clk 0:02:50]}  Be6 {[%clk 0:03:02]} 11. f4 {[%clk 0:02:49]}  h6 {[%clk 0:02:48]} 12. Bxf6 {[%clk 0:02:45]}  Bxf6 {[%clk 0:02:49]} 13. f5 {[%clk 0:02:41]}  Bc8 {[%clk 0:02:36]} 14. Nxd5 {[%clk 0:02:37]}  Nxe5 {[%clk 0:02:34]} 15. Nxf6+ {[%clk 0:02:35]}  Qxf6 {[%clk 0:02:35]} 16. dxe5 {[%clk 0:02:34]}  Qxe5 {[%clk 0:02:36]} 17. Rc1 {[%clk 0:02:30]}  Qc5+ {[%clk 0:02:27]} 18. Kh1 {[%clk 0:02:29]}  Bxf5 {[%clk 0:02:27]} 19. Rf4 {[%clk 0:02:14]}  Be6 {[%clk 0:02:25]} 20. Rd4 {[%clk 0:02:00]}  Qb6 {[%clk 0:02:12]} 21. Rc2 {[%clk 0:01:54]}  Rfd8 {[%clk 0:02:10]} 22. Rxd8+ {[%clk 0:01:50]}  Rxd8 {[%clk 0:02:10]} 23. Qg1 {[%clk 0:01:46]}  Qxg1+ {[%clk 0:01:56]} 24. Kxg1 {[%clk 0:01:45]}  Rd1+ {[%clk 0:01:55]} 25. Kf2 {[%clk 0:01:44]}  b5 {[%clk 0:01:55]} 26. Bc6 {[%clk 0:01:37]}  a6 {[%clk 0:01:55]} 27. a4 {[%clk 0:01:37]}  b4 {[%clk 0:01:39]} 28. a5 {[%clk 0:01:36]}  b3 {[%clk 0:01:35]} 29. Rc3 {[%clk 0:01:36]}  Rd2 {[%clk 0:01:35]} 30. Bb7 {[%clk 0:01:35]}  Rxb2 {[%clk 0:01:34]} 31. Bxa6 {[%clk 0:01:33]}  Rc2 {[%clk 0:01:35]} 0-1


[Site "https://www.chess.com"]

[Event "Titled Tuesday Blitz February 22 Early 2022"]
[White "De Souza Sa, Apolo"]
[Black "Pesotskiy, Mikhail"]
[WhiteFideId "324225390"]
[BlackFideId "34164453"]
[WhiteElo "1828"]
[BlackElo "2010"]
[Result "1-0"]
[Round "06"]
[TimeControl "180+1"]
[Date "2022.02.22"]
[WhiteClock "0:00:19"]
[BlackClock "0:00:10"]

1. d4 {[%clk 0:03:00]}  Nf6 {[%clk 0:02:58]} 2. c4 {[%clk 0:03:00]}  e6 {[%clk 0:02:58]} 3. g3 {[%clk 0:03:00]}  Bb4+ {[%clk 0:02:58]} 4. Nd2 {[%clk 0:02:58]}  c5 {[%clk 0:02:53]} 5. dxc5 {[%clk 0:02:53]}  Bxc5 {[%clk 0:02:51]} 6. Bg2 {[%clk 0:02:53]}  O-O {[%clk 0:02:50]} 7. Ngf3 {[%clk 0:02:52]}  d5 {[%clk 0:02:51]} 8. cxd5 {[%clk 0:02:52]}  exd5 {[%clk 0:02:52]} 9. Nb3 {[%clk 0:02:51]}  Bb6 {[%clk 0:02:48]} 10. Nbd4 {[%clk 0:02:47]}  Nc6 {[%clk 0:02:49]} 11. O-O {[%clk 0:02:45]}  Re8 {[%clk 0:02:46]} 12. Bg5 {[%clk 0:02:37]}  h6 {[%clk 0:02:45]} 13. Bxf6 {[%clk 0:02:30]}  Qxf6 {[%clk 0:02:46]} 14. e3 {[%clk 0:02:30]}  Bg4 {[%clk 0:02:46]} 15. Qb3 {[%clk 0:02:08]}  Rad8 {[%clk 0:02:43]} 16. Nxc6 {[%clk 0:01:58]}  bxc6 {[%clk 0:02:41]} 17. Qc3 {[%clk 0:01:51]}  Qxc3 {[%clk 0:01:40]} 18. bxc3 {[%clk 0:01:51]}  Bf5 {[%clk 0:01:41]} 19. Rfd1 {[%clk 0:01:41]}  Be4 {[%clk 0:01:40]} 20. Nd4 {[%clk 0:01:37]}  Bxg2 {[%clk 0:01:41]} 21. Kxg2 {[%clk 0:01:37]}  c5 {[%clk 0:01:41]} 22. Nf3 {[%clk 0:01:27]}  Re4 {[%clk 0:01:35]} 23. Rac1 {[%clk 0:01:21]}  Ba5 {[%clk 0:01:31]} 24. c4 {[%clk 0:01:15]}  Rxc4 {[%clk 0:01:31]} 25. Rxc4 {[%clk 0:01:12]}  dxc4 {[%clk 0:01:32]} 26. Rxd8+ {[%clk 0:01:12]}  Bxd8 {[%clk 0:01:33]} 27. Kf1 {[%clk 0:01:11]}  Bf6 {[%clk 0:01:25]} 28. Ke2 {[%clk 0:01:05]}  Kf8 {[%clk 0:01:25]} 29. Nd2 {[%clk 0:01:05]}  Ke7 {[%clk 0:00:59]} 30. Nxc4 {[%clk 0:01:04]}  Kd7 {[%clk 0:00:58]} 31. Kd3 {[%clk 0:00:59]}  Kc6 {[%clk 0:00:58]} 32. a4 {[%clk 0:00:59]}  a6 {[%clk 0:00:56]} 33. f4 {[%clk 0:00:55]}  g6 {[%clk 0:00:54]} 34. e4 {[%clk 0:00:55]}  Bd4 {[%clk 0:00:54]} 35. Ne5+ {[%clk 0:00:30]}  Bxe5 {[%clk 0:00:50]} 36. fxe5 {[%clk 0:00:31]}  Kb6 {[%clk 0:00:18]} 37. Kc4 {[%clk 0:00:30]}  Ka5 {[%clk 0:00:18]} 38. Kxc5 {[%clk 0:00:31]}  Kxa4 {[%clk 0:00:19]} 39. Kd6 {[%clk 0:00:32]}  Kb4 {[%clk 0:00:16]} 40. Ke7 {[%clk 0:00:32]}  a5 {[%clk 0:00:17]} 41. Kxf7 {[%clk 0:00:33]}  a4 {[%clk 0:00:17]} 42. e6 {[%clk 0:00:34]}  a3 {[%clk 0:00:18]} 43. e7 {[%clk 0:00:35]}  a2 {[%clk 0:00:19]} 44. e8=Q {[%clk 0:00:35]}  a1=Q {[%clk 0:00:20]} 45. Qe7+ {[%clk 0:00:31]}  Kc4 {[%clk 0:00:20]} 46. Qe6+ {[%clk 0:00:30]}  Kd3 {[%clk 0:00:20]} 47. Kxg6 {[%clk 0:00:25]}  Qh1 {[%clk 0:00:17]} 48. Qd5+ {[%clk 0:00:21]}  Ke3 {[%clk 0:00:16]} 49. Qb3+ {[%clk 0:00:20]}  Kd4 {[%clk 0:00:15]} 50. Qb2+ {[%clk 0:00:20]}  Ke3 {[%clk 0:00:14]} 51. Qc3+ {[%clk 0:00:20]}  Ke2 {[%clk 0:00:13]} 52. Qc2+ {[%clk 0:00:20]}  Ke3 {[%clk 0:00:13]} 53. Kxh6 {[%clk 0:00:20]}  Qf3 {[%clk 0:00:10]} 54. Qc1+ {[%clk 0:00:19]}  Kd4 {[%clk 0:00:09]} 55. Qd2+ {[%clk 0:00:18]}  Ke5 {[%clk 0:00:09]} 56. Qf4+ {[%clk 0:00:18]}  Qxf4+ {[%clk 0:00:09]} 57. gxf4+ {[%clk 0:00:18]}  Kxf4 {[%clk 0:00:10]} 58. Kg6 {[%clk 0:00:19]}  Kg4 {[%clk 0:00:10]} 59. e5 {[%clk 0:00:19]} 1-0


[Site "https://www.chess.com"]

[Event "Titled Tuesday Blitz February 22 Early 2022"]
[White "Dilmukhametov, Artur"]
[Black "Dejmek, Mark"]
[WhiteFideId "24179922"]
[BlackFideId "2017628"]
[WhiteElo "2266"]
[BlackElo "2194"]
[Result "1-0"]
[Round "06"]
[TimeControl "180+1"]
[Date "2022.02.22"]
[WhiteClock "0:01:08"]
[BlackClock "0:00:03"]

1. e4 {[%clk 0:03:00]}  e5 {[%clk 0:02:59]} 2. f4 {[%clk 0:02:59]}  exf4 {[%clk 0:02:58]} 3. Nf3 {[%clk 0:02:59]}  Be7 {[%clk 0:02:58]} 4. Bc4 {[%clk 0:02:54]}  Nf6 {[%clk 0:02:55]} 5. e5 {[%clk 0:02:53]}  Nh5 {[%clk 0:02:54]} 6. O-O {[%clk 0:02:52]}  O-O {[%clk 0:02:45]} 7. d4 {[%clk 0:02:51]}  d5 {[%clk 0:02:41]} 8. exd6 {[%clk 0:02:50]}  Bxd6 {[%clk 0:02:41]} 9. Nc3 {[%clk 0:02:49]}  Bg4 {[%clk 0:02:24]} 10. Ne4 {[%clk 0:02:43]}  Be7 {[%clk 0:02:14]} 11. d5 {[%clk 0:02:38]}  Nd7 {[%clk 0:02:07]} 12. h3 {[%clk 0:02:34]}  Bf5 {[%clk 0:01:54]} 13. Bd3 {[%clk 0:02:27]}  Bxe4 {[%clk 0:01:42]} 14. Bxe4 {[%clk 0:02:26]}  Ng3 {[%clk 0:01:40]} 15. Re1 {[%clk 0:02:26]}  Bc5+ {[%clk 0:01:33]} 16. Kh2 {[%clk 0:02:24]}  Bf2 {[%clk 0:01:24]} 17. Bxf4 {[%clk 0:02:22]}  Bxe1 {[%clk 0:01:23]} 18. Bxg3 {[%clk 0:02:14]}  Bxg3+ {[%clk 0:01:22]} 19. Kxg3 {[%clk 0:02:15]}  Nf6 {[%clk 0:01:20]} 20. Bd3 {[%clk 0:02:13]}  Qxd5 {[%clk 0:01:15]} 21. Kh2 {[%clk 0:02:10]}  Qd6+ {[%clk 0:01:13]} 22. Kh1 {[%clk 0:02:10]}  Rad8 {[%clk 0:01:06]} 23. Qe1 {[%clk 0:02:03]}  Rfe8 {[%clk 0:01:02]} 24. Qh4 {[%clk 0:02:02]}  h6 {[%clk 0:00:58]} 25. Rf1 {[%clk 0:02:01]}  c6 {[%clk 0:00:42]} 26. Nd2 {[%clk 0:01:49]}  Qd4 {[%clk 0:00:30]} 27. Qg3 {[%clk 0:01:40]}  Qe3 {[%clk 0:00:25]} 28. Nf3 {[%clk 0:01:37]}  Rxd3 {[%clk 0:00:20]} 29. cxd3 {[%clk 0:01:33]}  Qxd3 {[%clk 0:00:21]} 30. Rg1 {[%clk 0:01:27]}  Qc2 {[%clk 0:00:19]} 31. Qc7 {[%clk 0:01:24]}  Ne4 {[%clk 0:00:17]} 32. Ne5 {[%clk 0:01:18]}  Ng3+ {[%clk 0:00:15]} 33. Kh2 {[%clk 0:01:18]}  Rxe5 {[%clk 0:00:07]} 34. Qxe5 {[%clk 0:01:18]}  Ne4 {[%clk 0:00:07]} 35. Re1 {[%clk 0:01:15]}  Nf2 {[%clk 0:00:06]} 36. Re2 {[%clk 0:01:10]}  Nd3 {[%clk 0:00:03]} 37. Qe8+ {[%clk 0:01:08]} 1-0


[Site "https://www.chess.com"]